fUSD/lending_fUSD_20250504
["ID","MTS","AMOUNT","RATE_DAILY","PERIOD"]
[359796939,1746353441409,-388.30674961,0.00019726,2]
[359796941,1746353441418,-450.0,0.00019726,2]
[359796943,1746353441427,-450.0,0.00019726,2]
[359796945,1746353441436,-500.0,0.00019726,2]
[359796948,1746353441446,-450.0,0.00019726,2]
[359796950,1746353441456,-450.0,0.00019726,2]
[359796952,1746353441465,-518.9,0.00019726,2]
[359796954,1746353441475,-450.0,0.00019726,2]
[359796956,1746353441485,-523.06,0.00019726,2]
[359796958,1746353441494,-450.0,0.00019726,2]
[359796960,1746353441503,-450.0,0.00019726,2]
[359796962,1746353441512,-450.0,0.00019726,2]
[359796964,1746353441522,-450.0,0.00019726,2]
[359796966,1746353441531,-450.0,0.00019726,2]
[359796968,1746353441540,-450.0,0.00019726,2]
[359796970,1746353441549,-450.0,0.00019726,2]
[359796972,1746353441558,-450.0,0.00019726,2]
[359796974,1746353441568,-450.0,0.00019726,2]
[359796976,1746353441577,-450.0,0.00019726,2]
[359796978,1746353441586,-462.41357313,0.00019726,2]
[359796980,1746353441595,-450.0,0.00019726,2]
[359796982,1746353441605,-2152.94,0.00019726,2]
[359796984,1746353441614,-450.0,0.00019726,2]
[359796986,1746353441622,-450.0,0.00019726,2]
[359796988,1746353441632,-500.7,0.00019726,2]
[359796990,1746353441641,-450.0,0.00019726,2]
[359796992,1746353441650,-450.0,0.00019726,2]
[359796994,1746353441659,-450.0,0.00019726,2]
[359796996,1746353441668,-450.0,0.00019726,2]
[359796998,1746353441677,-450.0,0.00019726,2]
[359797000,1746353441686,-450.0,0.00019726,2]
[359797002,1746353441695,-450.0,0.00019726,2]
[359797004,1746353441705,-450.0,0.00019726,2]
[359797006,1746353441714,-450.0,0.00019726,2]
[359797008,1746353441724,-450.0,0.00019726,2]
[359797010,1746353441733,-450.0,0.00019726,2]
[359797011,1746353441745,-450.0,0.00019726,2]
[359797013,1746353441755,-450.0,0.00019726,2]
[359797015,1746353441764,-450.0,0.00019726,2]
[359797017,1746353441773,-589.76,0.00019726,2]
[359797019,1746353441783,-450.0,0.00019726,2]
[359797021,1746353441792,-450.0,0.00019726,2]
[359797023,1746353441801,-450.0,0.00019726,2]
[359797026,1746353441811,-470.62025832,0.00019726,2]
[359797027,1746353441821,-450.0,0.00019726,2]
[359797029,1746353441831,-450.0,0.00019726,2]
[359797031,1746353441840,-450.0,0.00019726,2]
[359797033,1746353441849,-450.0,0.00019726,2]
[359797036,1746353441859,-2083.17,0.00019726,2]
[359797037,1746353441868,-450.0,0.00019726,2]
[359797039,1746353441878,-480.01030359,0.00019726,2]
[359797042,1746353441887,-450.0,0.00019726,2]
[359797043,1746353441897,-764.66,0.00019726,2]
[359797045,1746353441906,-450.0,0.00019726,2]
[359797047,1746353441915,-999.73,0.00019726,2]
[359797049,1746353441925,-481.35908732,0.00019726,2]
[359797051,1746353441934,-450.0,0.00019726,2]
[359797054,1746353441944,-450.0,0.00019726,2]
[359797067,1746353442142,-450.0,0.00019726,2]
[359797069,1746353442151,-1844.37,0.00019726,2]
[359797071,1746353442160,-546.98,0.00019726,2]
[359797073,1746353442170,-450.0,0.00019726,2]
[359797075,1746353442179,-551.69,0.00019726,2]
[359797077,1746353442188,-450.86091876,0.00019726,2]
[359797079,1746353442197,-450.0,0.00019726,2]
[359797081,1746353442207,-210.86161016,0.00019726,2]
[359797084,1746353442216,-450.0,0.00019726,2]
[359797086,1746353442226,-730.12,0.00019726,2]
[359797088,1746353442235,-450.0,0.00019726,2]
[359797089,1746353442243,-450.0,0.00019726,2]
[359797091,1746353442252,-450.0,0.00019726,2]
[359797093,1746353442261,-450.0,0.00019726,2]
[359797095,1746353442270,-450.0,0.00019726,2]
[359797097,1746353442280,-450.0,0.00019726,2]
[359797099,1746353442289,-450.0,0.00019726,2]
[359797101,1746353442298,-581.634824,0.00019726,2]
[359797103,1746353442307,-450.0,0.00019726,2]
[359797104,1746353442317,-450.0,0.00019726,2]
[359797106,1746353442326,-450.0,0.00019726,2]
[359797108,1746353442335,-450.0,0.00019726,2]
[359797110,1746353442344,-450.0,0.00019726,2]
[359797112,1746353442353,-454.36,0.00019726,2]
[359797114,1746353442362,-450.0,0.00019726,2]
[359797116,1746353442371,-1668.82,0.00019726,2]
[359797118,1746353442380,-450.0,0.00019726,2]
[359797120,1746353442391,-3150.98,0.00019726,2]
[359797122,1746353442401,-450.0,0.00019726,2]
[359797124,1746353442411,-224.10514347,0.00019726,2]
[359797126,1746353442422,-453.4022161,0.00019726,2]
[359797128,1746353442432,-450.0,0.00019726,2]
[359797130,1746353442441,-479.51634144,0.00019726,2]
[359797132,1746353442450,-465.6151582,0.00019726,2]
[359797134,1746353442459,-450.0,0.00019726,2]
[359797136,1746353442468,-450.0,0.00019726,2]
[359797138,1746353442477,-487.63673835,0.00019726,2]
[359797140,1746353442486,-450.0,0.00019726,2]
[359797142,1746353442495,-450.0,0.00019726,2]
[359797144,1746353442504,-39260.89,0.00019726,2]
[359797146,1746353442513,-450.0,0.00019726,2]
[359797148,1746353442522,-450.0,0.00019726,2]
[359797150,1746353442531,-450.0,0.00019726,2]
[359797152,1746353442541,-450.0,0.00019726,2]
[359797154,1746353442550,-450.0,0.00019726,2]
[359797156,1746353442559,-450.0,0.00019726,2]
[359797158,1746353442568,-450.0,0.00019726,2]
[359797160,1746353442577,-479.21627206,0.00019726,2]
[359797162,1746353442586,-512.49471322,0.00019726,2]
[359797164,1746353442595,-530.69,0.00019726,2]
[359797166,1746353442605,-934.68,0.00019726,2]
[359797168,1746353442613,-479.20537631,0.00019726,2]
[359797170,1746353442623,-450.0,0.00019726,2]
[359797172,1746353442631,-500.0,0.00019726,2]
[359797174,1746353442640,-450.0,0.00019726,2]
[359797176,1746353442649,-450.0,0.00019726,2]
[359797178,1746353442659,-450.0,0.00019726,2]
[359797180,1746353442667,-2424.35,0.00019726,2]
[359797182,1746353442676,-544.67044149,0.00019726,2]
[359797184,1746353442688,-456.89,0.00019726,2]
[359797186,1746353442697,-450.0,0.00019726,2]
[359797188,1746353442707,-450.0,0.00019726,2]
[359797190,1746353442716,-450.0,0.00019726,2]
[359797192,1746353442724,-450.0,0.00019726,2]
[359797194,1746353442734,-450.0,0.00019726,2]
[359797196,1746353442745,-450.0,0.00019726,2]
[359797198,1746353442754,-11072.51,0.00019726,2]
[359797200,1746353442764,-450.0,0.00019726,2]
[359797203,1746353442773,-422.28483524,0.00019726,2]
[359797205,1746353442783,-450.0,0.00019726,2]
[359797207,1746353442792,-450.0,0.00019726,2]
[359797209,1746353442801,-450.0,0.00019726,2]
[359797211,1746353442810,-450.0,0.00019726,2]
[359797213,1746353442820,-450.0,0.00019726,2]
[359797215,1746353442829,-465.14475671,0.00019726,2]
[359797217,1746353442838,-450.0,0.00019726,2]
[359797219,1746353442847,-714.77,0.00019726,2]
[359797221,1746353442856,-450.0,0.00019726,2]
[359797223,1746353442865,-450.0,0.00019726,2]
[359797226,1746353442874,-450.0,0.00019726,2]
[359797228,1746353442883,-450.0,0.00019726,2]
[359797230,1746353442892,-450.0,0.00019726,2]
[359797232,1746353442901,-493.54,0.00019726,2]
[359797234,1746353442911,-2547.98,0.00019726,2]
[359797236,1746353442920,-259.06140947,0.00019726,2]
[359797238,1746353442929,-450.0,0.00019726,2]
[359797240,1746353442938,-6331.74,0.00019726,2]
[359797242,1746353442947,-475.56731351,0.00019726,2]
[359797244,1746353442957,-572.56,0.00019726,2]
[359797247,1746353442966,-450.0,0.00019726,2]
[359797249,1746353442975,-543.41155062,0.00019726,2]
[359797251,1746353442985,-450.0,0.00019726,2]
[359797253,1746353442995,-494.22,0.00019726,2]
[359797255,1746353443005,-450.0,0.00019726,2]
[359797258,1746353443015,-2301.44,0.00019726,2]
[359797261,1746353443024,-450.0,0.00019726,2]
[359797264,1746353443032,-640.02,0.00019726,2]
[359797267,1746353443041,-450.0,0.00019726,2]
[359797270,1746353443050,-450.0,0.00019726,2]
[359797272,1746353443059,-392.2486445,0.00019726,2]
[359797275,1746353443068,-450.0,0.00019726,2]
[359797277,1746353443077,-450.0,0.00019726,2]
[359797279,1746353443086,-450.0,0.00019726,2]
[359797281,1746353443096,-352.25322535,0.00019726,2]
[359797283,1746353443105,-450.0,0.00019726,2]
[359797285,1746353443114,-450.0,0.00019726,2]
[359797287,1746353443124,-450.0,0.00019726,2]
[359797289,1746353443133,-486.91,0.00019726,2]
[359797291,1746353443142,-469.43,0.00019726,2]
[359797293,1746353443151,-450.0,0.00019726,2]
[359797294,1746353443160,-294.97114999,0.00019735,2]
[359797295,1746353443169,-917.55830012,0.00019748,2]
[359797296,1746353443178,-242.720847,0.00019753,2]
[359797297,1746353443186,-430.991046,0.00019753,2]
[359797298,1746353443195,-450.0,0.00019753,2]
[359797299,1746353443204,-450.0,0.00019753,2]
[359797300,1746353443214,-450.0,0.00019753,2]
[359797302,1746353443223,-528.16,0.00019753,2]
[359797304,1746353443232,-518.61256473,0.00019753,2]
[359797306,1746353443240,-450.0,0.00019753,2]
[359797308,1746353443250,-450.0,0.00019753,2]
[359797310,1746353443260,-517.86,0.00019753,2]
[359797312,1746353443269,-450.0,0.00019753,2]
[359797314,1746353443278,-450.0,0.00019753,2]
[359797316,1746353443287,-541.81,0.00019753,2]
[359797318,1746353443296,-450.0,0.00019753,2]
[359797320,1746353443305,-450.0,0.00019753,2]
[359797322,1746353443314,-450.0,0.00019753,2]
[359797324,1746353443324,-1053.05,0.00019753,2]
[359797326,1746353443333,-450.0,0.00019753,2]
[359797328,1746353443342,-525.4,0.00019753,2]
[359797330,1746353443352,-462.71,0.00019753,2]
[359797332,1746353443361,-450.0,0.00019753,2]
[359797334,1746353443370,-450.0,0.00019753,2]
[359797336,1746353443379,-450.0,0.00019753,2]
[359797338,1746353443388,-450.0,0.00019753,2]
[359797339,1746353443398,-450.0,0.00019753,2]
[359797340,1746353443407,-450.0,0.00019753,2]
[359797341,1746353443416,-450.0,0.00019753,2]
[359797342,1746353443425,-450.0,0.00019753,2]
[359797343,1746353443435,-450.0,0.00019753,2]
[359797344,1746353443444,-296.94,0.00019753,2]
[359797345,1746353443453,-450.0,0.00019753,2]
[359797346,1746353443462,-450.0,0.00019753,2]
[359797347,1746353443471,-450.0,0.00019753,2]
[359797348,1746353443481,-681.99,0.00019753,2]
[359797349,1746353443490,-264.18,0.00019753,2]
[359797350,1746353443499,-450.0,0.00019753,2]
[359797351,1746353443508,-254.19,0.00019753,2]
[359797352,1746353443518,-450.0,0.00019753,2]
[359797353,1746353443528,-178.74,0.00019753,2]
[359797354,1746353443537,-450.0,0.00019753,2]
[359797355,1746353443547,-370.22,0.00019753,2]
[359797356,1746353443557,-510.89,0.00019753,2]
[359797357,1746353443566,-240.45,0.00019753,2]
[359797358,1746353443578,-455.12,0.00019753,2]
[359797359,1746353443588,-397.39,0.00019753,2]
[359797360,1746353443597,-583.45,0.00019753,2]
[359797361,1746353443606,-450.0,0.00019753,2]
[359797362,1746353443615,-285.75,0.00019753,2]
[359797363,1746353443624,-450.0,0.00019753,2]
[359797364,1746353443634,-253.96,0.00019753,2]
[359797365,1746353443643,-301.49158264,0.00019753,2]
[359797367,1746353443653,-531.47,0.00019753,2]
[359797368,1746353443662,-278.6,0.00019753,2]
[359797370,1746353443670,-491.78,0.00019753,2]
[359797372,1746353443679,-450.0,0.00019753,2]
[359797374,1746353443688,-450.0,0.00019753,2]
[359797376,1746353443698,-450.0,0.00019753,2]
[359797378,1746353443708,-450.0,0.00019753,2]
[359797380,1746353443717,-450.0,0.00019753,2]
[359797383,1746353443727,-450.0,0.00019753,2]
[359797385,1746353443735,-450.0,0.00019753,2]
[359797386,1746353443749,-371.78,0.00019753,2]
[359797388,1746353443758,-450.0,0.00019753,2]
[359797390,1746353443767,-450.0,0.00019753,2]
[359797392,1746353443776,-513.37,0.00019753,2]
[359797394,1746353443786,-450.0,0.00019753,2]
[359797396,1746353443795,-216.66,0.00019753,2]
[359797398,1746353443803,-450.0,0.00019753,2]
[359797400,1746353443812,-450.0,0.00019753,2]
[359797402,1746353443823,-450.0,0.00019753,2]
[359797404,1746353443832,-450.0,0.00019753,2]
[359797406,1746353443841,-490.93,0.00019753,2]
[359797408,1746353443850,-484.86,0.00019753,2]
[359797410,1746353443859,-450.0,0.00019753,2]
[359797412,1746353443868,-324.67,0.00019753,2]
[359797414,1746353443877,-450.0,0.00019753,2]
[359797416,1746353443887,-450.0,0.00019753,2]
[359797418,1746353443896,-450.0,0.00019753,2]
[359797420,1746353443906,-450.0,0.00019753,2]
[359797422,1746353443915,-450.0,0.00019753,2]
[359797424,1746353443925,-386.4,0.00019753,2]
[359797426,1746353443934,-450.0,0.00019753,2]
[359797428,1746353443943,-291.41,0.00019753,2]
[359797430,1746353443952,-300.14,0.00019753,2]
[359797432,1746353443961,-184.58,0.00019753,2]
[359797434,1746353443970,-1029.37,0.00019753,2]
[359797436,1746353443979,-457.95,0.00019753,2]
[359797438,1746353443988,-335.53,0.00019753,2]
[359797440,1746353443997,-151.39,0.00019753,2]
[359797442,1746353444006,-907.44,0.00019753,2]
[359797443,1746353444015,-450.0,0.00019753,2]
[359797445,1746353444024,-450.0,0.00019753,2]
[359797447,1746353444033,-450.0,0.00019753,2]
[359797449,1746353444042,-450.0,0.00019753,2]
[359797451,1746353444051,-450.0,0.00019753,2]
[359797453,1746353444060,-309.63,0.00019753,2]
[359797455,1746353444069,-581.96378712,0.00019753,2]
[359797457,1746353444078,-152.05,0.00019753,2]
[359797459,1746353444087,-238.15,0.00019753,2]
[359797461,1746353444096,-450.0,0.00019753,2]
[359797463,1746353444106,-450.0,0.00019753,2]
[359797465,1746353444115,-450.0,0.00019753,2]
[359797467,1746353444124,-356.55,0.00019753,2]
[359797469,1746353444133,-450.0,0.00019753,2]
[359797471,1746353444142,-470.54,0.00019753,2]
[359797473,1746353444151,-157.33577194,0.00019753,2]
[359797475,1746353444160,-45823.04,0.00019753,2]
[359797477,1746353444169,-354.06,0.00019753,2]
[359797479,1746353444177,-450.0,0.00019753,2]
[359797480,1746353444186,-450.0,0.00019753,2]
[359797481,1746353444195,-450.0,0.00019753,2]
[359797482,1746353444203,-450.0,0.00019753,2]
[359797483,1746353444212,-278.64,0.00019753,2]
[359797484,1746353444221,-423.2,0.00019753,2]
[359797485,1746353444229,-960.3,0.00019753,2]
[359797486,1746353444238,-449.46,0.00019753,2]
[359797487,1746353444247,-450.0,0.00019753,2]
[359797489,1746353444256,-450.0,0.00019753,2]
[359797491,1746353444264,-450.0,0.00019753,2]
[359797493,1746353444277,-450.0,0.00019753,2]
[359797495,1746353444286,-157.97371644,0.00019753,2]
[359797497,1746353444295,-585.62,0.00019753,2]
[359797499,1746353444303,-732.42,0.00019753,2]
[359797501,1746353444313,-450.0,0.00019753,2]
[359797503,1746353444322,-450.0,0.00019753,2]
[359797505,1746353444333,-2173.7,0.00019753,2]
[359797507,1746353444341,-199.65,0.00019753,2]
[359797509,1746353444351,-450.0,0.00019753,2]
[359797511,1746353444360,-450.0,0.00019753,2]
[359797513,1746353444369,-450.0,0.00019753,2]
[359797515,1746353444379,-765.91,0.00019753,2]
[359797517,1746353444388,-471.13735025,0.00019753,2]
[359797519,1746353444397,-472.04,0.00019753,2]
[359797521,1746353444406,-450.0,0.00019753,2]
[359797523,1746353444415,-935.18,0.00019753,2]
[359797525,1746353444424,-450.0,0.00019753,2]
[359797527,1746353444433,-450.0,0.00019753,2]
[359797529,1746353444442,-450.0,0.00019753,2]
[359797531,1746353444451,-450.0,0.00019753,2]
[359797533,1746353444461,-450.0,0.00019753,2]
[359797535,1746353444470,-450.0,0.00019753,2]
[359797537,1746353444479,-450.0,0.00019753,2]
[359797539,1746353444488,-523.06,0.00019753,2]
[359797541,1746353444497,-450.0,0.00019753,2]
[359797543,1746353444506,-450.0,0.00019753,2]
[359797545,1746353444516,-450.0,0.00019753,2]
[359797547,1746353444525,-450.0,0.00019753,2]
[359797549,1746353444534,-450.0,0.00019753,2]
[359797551,1746353444544,-2152.94,0.00019753,2]
[359797553,1746353444553,-335.96,0.00019753,2]
[359797555,1746353444562,-450.0,0.00019753,2]
[359797557,1746353444571,-278.65,0.00019753,2]
[359797558,1746353444580,-509.31,0.00019753,2]
[359797559,1746353444589,-450.0,0.00019753,2]
[359797560,1746353444598,-561.77,0.00019753,2]
[359797562,1746353444607,-450.0,0.00019753,2]
[359797564,1746353444616,-450.0,0.00019753,2]
[359797566,1746353444625,-589.76,0.00019753,2]
[359797568,1746353444634,-450.0,0.00019753,2]
[359797570,1746353444644,-156.3411145,0.00019753,2]
[359797572,1746353444652,-450.0,0.00019753,2]
[359797574,1746353444661,-450.0,0.00019753,2]
[359797576,1746353444671,-2083.17,0.00019753,2]
[359797578,1746353444680,-450.0,0.00019753,2]
[359797580,1746353444689,-450.0,0.00019753,2]
[359797582,1746353444700,-764.66,0.00019753,2]
[359797584,1746353444709,-450.0,0.00019753,2]
[359797586,1746353444717,-999.73,0.00019753,2]
[359797588,1746353444726,-450.0,0.00019753,2]
[359797590,1746353444735,-1844.37,0.00019753,2]
[359797592,1746353444748,-546.98,0.00019753,2]
[359797594,1746353444757,-450.0,0.00019753,2]
[359797596,1746353444766,-730.12,0.00019753,2]
[359797598,1746353444775,-450.0,0.00019753,2]
[359797600,1746353444784,-520.23321647,0.00019753,2]
[359797602,1746353444794,-450.0,0.00019753,2]
[359797604,1746353444803,-450.0,0.00019753,2]
[359797606,1746353444811,-581.634824,0.00019753,2]
[359797608,1746353444821,-450.0,0.00019753,2]
[359797610,1746353444830,-450.0,0.00019753,2]
[359797612,1746353444839,-450.0,0.00019753,2]
[359797613,1746353444848,-220.31,0.00019753,2]
[359797615,1746353444857,-454.36,0.00019753,2]
[359797617,1746353444866,-161.78,0.00019753,2]
[359797619,1746353444875,-1668.82,0.00019753,2]
[359797621,1746353444886,-221.05,0.00019753,2]
[359797623,1746353444895,-3150.98,0.00019753,2]
[359797625,1746353444904,-594.18,0.00019753,2]
[359797627,1746353444913,-450.0,0.00019753,2]
[359797629,1746353444922,-450.0,0.00019753,2]
[359797630,1746353444931,-39260.89,0.00019753,2]
[359797632,1746353444940,-450.0,0.00019753,2]
[359797634,1746353444948,-580.31,0.00019753,2]
[359797636,1746353444957,-530.69,0.00019753,2]
[359797638,1746353444966,-934.68,0.00019753,2]
[359797640,1746353444975,-450.0,0.00019753,2]
[359797642,1746353444984,-450.0,0.00019753,2]
[359797644,1746353444993,-450.0,0.00019753,2]
[359797645,1746353445002,-2424.35,0.00019753,2]
[359797647,1746353445011,-456.89,0.00019753,2]
[359797649,1746353445020,-362.96,0.00019753,2]
[359797651,1746353445029,-11072.51,0.00019753,2]
[359797653,1746353445039,-450.0,0.00019753,2]
[359797655,1746353445048,-450.0,0.00019753,2]
[359797657,1746353445057,-171.20750357,0.00019753,2]
[359797659,1746353445067,-714.77,0.00019753,2]
[359797661,1746353445076,-153.29513429,0.00019753,2]
[359797663,1746353445086,-450.0,0.00019753,2]
[359797665,1746353445095,-450.0,0.00019753,2]
[359797667,1746353445104,-592.46871297,0.00019753,2]
[359797669,1746353445114,-2547.98,0.00019753,2]
[359797671,1746353445123,-6331.74,0.00019753,2]
[359797673,1746353445133,-450.0,0.00019753,2]
[359797675,1746353445142,-176.66136161,0.00019753,2]
[359797677,1746353445151,-2301.44,0.00019753,2]
[359797679,1746353445160,-640.02,0.00019753,2]
[359797681,1746353445169,-450.0,0.00019753,2]
[359797683,1746353445178,-258.18,0.00019753,2]
[359797684,1746353445187,-296.0,0.00019753,2]
[359797685,1746353445196,-162.78432977,0.00019763,2]
[359797686,1746353445205,-160.17249924,0.00019773,2]
[359797687,1746353445213,-500.0,0.00019773,2]
[359797688,1746353445222,-500.77379964,0.00019773,2]
[359797689,1746353445231,-500.0,0.00019773,2]
[359797690,1746353445240,-500.0,0.00019773,2]
[359797691,1746353445250,-500.0,0.00019773,2]
[359797692,1746353445259,-165.02037954,0.00019773,2]
[359797693,1746353445269,-500.0,0.00019773,2]
[359797694,1746353445278,-500.0,0.00019773,2]
[359797695,1746353445287,-161.57998144,0.00019773,2]
[359797696,1746353445296,-500.0,0.00019773,2]
[359797697,1746353445308,-163.05753432,0.00019773,2]
[359797698,1746353445317,-161.06774323,0.00019773,2]
[359797699,1746353445326,-500.0,0.00019773,2]
[359797700,1746353445334,-503.43658177,0.00019773,2]
[359797701,1746353445343,-294.97114997,0.00019776,2]
[359797702,1746353445352,-917.55830012,0.00019778,2]
[359797703,1746353445361,-500.0,0.00019779,2]
[359797704,1746353445370,-774.79230906,0.00019779,2]
[359797705,1746353445379,-500.0,0.00019779,2]
[359797706,1746353445388,-530.70042877,0.00019779,2]
[359797707,1746353445397,-500.0,0.00019779,2]
[359797708,1746353445406,-450.0,0.0001978,2]
[359797709,1746353445416,-450.0,0.0001978,2]
[359797710,1746353445425,-450.0,0.0001978,2]
[359797711,1746353445435,-528.16,0.0001978,2]
[359797712,1746353445444,-450.0,0.0001978,2]
[359797713,1746353445453,-450.0,0.0001978,2]
[359797714,1746353445463,-450.0,0.0001978,2]
[359797715,1746353445472,-450.0,0.0001978,2]
[359797716,1746353445481,-450.0,0.0001978,2]
[359797717,1746353445490,-450.0,0.0001978,2]
[359797718,1746353445499,-450.0,0.0001978,2]
[359797719,1746353445508,-1053.05,0.0001978,2]
[359797720,1746353445517,-450.0,0.0001978,2]
[359797721,1746353445526,-525.4,0.0001978,2]
[359797723,1746353445536,-462.71,0.0001978,2]
[359797725,1746353445545,-450.0,0.0001978,2]
[359797727,1746353445554,-450.0,0.0001978,2]
[359797729,1746353445563,-450.0,0.0001978,2]
[359797731,1746353445572,-450.0,0.0001978,2]
[359797733,1746353445581,-450.0,0.0001978,2]
[359797735,1746353445590,-450.0,0.0001978,2]
[359797737,1746353445599,-450.0,0.0001978,2]
[359797739,1746353445608,-450.0,0.0001978,2]
[359797741,1746353445617,-450.0,0.0001978,2]
[359797742,1746353445627,-450.0,0.0001978,2]
[359797745,1746353445637,-450.0,0.0001978,2]
[359797746,1746353445646,-681.99,0.0001978,2]
[359797748,1746353445655,-450.0,0.0001978,2]
[359797750,1746353445665,-450.0,0.0001978,2]
[359797752,1746353445674,-450.0,0.0001978,2]
[359797754,1746353445683,-450.0,0.0001978,2]
[359797756,1746353445691,-206.37,0.0001978,2]
[359797758,1746353445701,-491.78,0.0001978,2]
[359797760,1746353445710,-450.0,0.0001978,2]
[359797762,1746353445719,-450.0,0.0001978,2]
[359797764,1746353445728,-450.0,0.0001978,2]
[359797766,1746353445738,-450.0,0.0001978,2]
[359797768,1746353445750,-450.0,0.0001978,2]
[359797770,1746353445759,-279.66532029,0.0001978,2]
[359797772,1746353445768,-450.0,0.0001978,2]
[359797774,1746353445777,-450.0,0.0001978,2]
[359797776,1746353445786,-450.0,0.0001978,2]
[359797778,1746353445795,-513.37,0.0001978,2]
[359797780,1746353445804,-572.12,0.0001978,2]
[359797782,1746353445814,-450.0,0.0001978,2]
[359797783,1746353445823,-450.0,0.0001978,2]
[359797785,1746353445834,-450.0,0.0001978,2]
[359797786,1746353445842,-450.0,0.0001978,2]
[359797788,1746353445852,-450.0,0.0001978,2]
[359797789,1746353445861,-507.8,0.0001978,2]
[359797791,1746353445871,-480.4,0.0001978,2]
[359797792,1746353445880,-1029.37,0.0001978,2]
[359797794,1746353445890,-457.95,0.0001978,2]
[359797795,1746353445899,-907.44,0.0001978,2]
[359797797,1746353445909,-447.06,0.0001978,2]
[359797798,1746353445918,-450.0,0.0001978,2]
[359797800,1746353445927,-450.0,0.0001978,2]
[359797814,1746353446107,-450.0,0.0001978,2]
[359797815,1746353446117,-450.0,0.0001978,2]
[359797817,1746353446126,-450.0,0.0001978,2]
[359797818,1746353446136,-45823.04,0.0001978,2]
[359797820,1746353446145,-201.04331515,0.0001978,2]
[359797822,1746353446154,-450.0,0.0001978,2]
[359797823,1746353446164,-450.0,0.0001978,2]
[359797825,1746353446173,-450.0,0.0001978,2]
[359797827,1746353446183,-960.3,0.0001978,2]
[359797828,1746353446192,-450.0,0.0001978,2]
[359797830,1746353446201,-450.0,0.0001978,2]
[359797832,1746353446210,-450.0,0.0001978,2]
[359797833,1746353446219,-450.0,0.0001978,2]
[359797835,1746353446228,-585.62,0.0001978,2]
[359797837,1746353446238,-732.42,0.0001978,2]
[359797838,1746353446247,-450.0,0.0001978,2]
[359797840,1746353446256,-294.65206428,0.0001978,2]
[359797841,1746353446266,-2173.7,0.0001978,2]
[359797843,1746353446275,-189.29,0.0001978,2]
[359797845,1746353446284,-450.0,0.0001978,2]
[359797846,1746353446294,-765.91,0.0001978,2]
[359797848,1746353446303,-472.04,0.0001978,2]
[359797850,1746353446312,-450.0,0.0001978,2]
[359797851,1746353446321,-935.18,0.0001978,2]
[359797853,1746353446330,-450.0,0.0001978,2]
[359797855,1746353446339,-450.0,0.0001978,2]
[359797856,1746353446349,-450.0,0.0001978,2]
[359797858,1746353446358,-450.0,0.0001978,2]
[359797859,1746353446368,-450.0,0.0001978,2]
[359797861,1746353446377,-450.0,0.0001978,2]
[359797863,1746353446386,-523.06,0.0001978,2]